fUSD/lending_fUSD_20240117
["ID","MTS","AMOUNT","RATE_DAILY","PERIOD"]
[311894187,1705489914669,-795.84,0.00024109,2]
[311894188,1705489914679,-4042.57,0.00024109,2]
[311894189,1705489914688,-500.0,0.00024109,2]
[311894190,1705489914698,-1181.55,0.00024109,2]
[311894191,1705489914707,-500.0,0.00024109,2]
[311894192,1705489914717,-500.0,0.00024109,2]
[311894193,1705489914726,-964.47,0.00024109,2]
[311894194,1705489914735,-1662.15,0.00024109,2]
[311894195,1705489914745,-500.0,0.00024109,2]
[311894196,1705489914754,-1443.1,0.00024109,2]
[311894197,1705489914764,-829.46,0.00024109,2]
[311894198,1705489914773,-500.0,0.00024109,2]
[311894199,1705489914782,-1683.87,0.00024109,2]
[311894200,1705489914792,-1912.07,0.00024109,2]
[311894201,1705489914801,-602.95,0.00024109,2]
[311894202,1705489914810,-2975.27,0.00024109,2]
[311894203,1705489914820,-1794.36,0.00024109,2]
[311894204,1705489914830,-1938.89,0.00024109,2]
[311894205,1705489914839,-3013.34,0.00024109,2]
[311894206,1705489914849,-649.62,0.00024109,2]
[311894207,1705489914858,-8143.8,0.00024109,2]
[311894208,1705489914868,-509.62,0.00024109,2]
[311894209,1705489914879,-1207.37,0.00024109,2]
[311894210,1705489914889,-1304.2,0.00024109,2]
[311894211,1705489914898,-500.0,0.00024109,2]
[311894212,1705489914907,-1538.7,0.00024109,2]
[311894213,1705489914917,-924.58,0.00024109,2]
[311894214,1705489914926,-2403.64,0.00024109,2]
[311894215,1705489914935,-500.0,0.00024109,2]
[311894216,1705489914944,-500.0,0.00024109,2]
[311894217,1705489914954,-852.81,0.00024109,2]
[311894218,1705489914963,-1179.93,0.00024109,2]
[311894219,1705489914972,-1937.17,0.00024109,2]
[311894220,1705489914981,-1023.73,0.00024109,2]
[311894221,1705489914991,-500.0,0.00024109,2]
[311894222,1705489915000,-2592.46,0.00024109,2]
[311894223,1705489915010,-968.29,0.00024109,2]
[311894224,1705489915019,-3413.16,0.00024109,2]
[311894225,1705489915028,-500.0,0.00024109,2]
[311894226,1705489915038,-500.0,0.00024109,2]
[311894227,1705489915047,-500.0,0.00024109,2]
[311894228,1705489915057,-1297.47,0.00024109,2]
[311894229,1705489915066,-745.84,0.00024109,2]
[311894230,1705489915075,-2908.69,0.00024109,2]
[311894231,1705489915084,-1190.11,0.00024109,2]
[311894232,1705489915093,-500.0,0.00024109,2]
[311894233,1705489915102,-815.9,0.00024109,2]
[311894234,1705489915111,-500.0,0.00024109,2]
[311894235,1705489915120,-8716.14,0.00024109,2]
[311894236,1705489915129,-601.43,0.00024109,2]
[311894237,1705489915139,-3604.29,0.00024109,5]
[311894238,1705489915148,-2488.53,0.00024109,2]
[311894239,1705489915158,-500.0,0.00024109,2]
[311894240,1705489915167,-681.48,0.00024109,2]
[311894241,1705489915177,-1866.72,0.00024109,2]
[311894242,1705489915186,-500.0,0.00024109,2]
[311894243,1705489915196,-571.22,0.00024109,2]
[311894244,1705489915205,-440.39,0.00024183,2]
[311894245,1705489915214,-160.0,0.00024254,2]
[311894246,1705489915313,-151.0,0.00024254,2]
[311894247,1705489915322,-169.39,0.00024297,2]
[311894248,1705489915332,-167.0,0.00024297,2]
[311894249,1705489915341,-168.76,0.00024297,2]
[311894250,1705489915351,-167.01,0.00024297,2]
[311894251,1705489915363,-150.0,0.00024315,2]
[311894252,1705489915373,-150.0,0.00024352,2]
[311894253,1705489915382,-500.0,0.00024358,2]
[311894254,1705489915391,-1504.83,0.00024383,2]
[311894255,1705489915401,-752.6,0.00024383,2]
[311894256,1705489915410,-500.0,0.00024383,2]
[311894257,1705489915419,-214.77031999,0.00024383,2]
[311894258,1705489915430,-1005.29,0.00024383,2]
[311894259,1705489915442,-581.65,0.00024383,2]
[311894260,1705489915451,-724.82,0.00024383,2]
[311894261,1705489915460,-500.0,0.00024383,2]
[311894262,1705489915469,-600.28,0.00024383,2]
[311894263,1705489915478,-500.0,0.00024383,2]
[311894264,1705489915488,-568.6,0.00024383,2]
[311894265,1705489915497,-500.0,0.00024383,2]
[311894266,1705489915506,-500.0,0.00024383,2]
[311894267,1705489915515,-500.0,0.00024383,2]
[311894268,1705489915523,-514.64,0.00024383,2]
[311894269,1705489915534,-522.85,0.00024383,2]
[311894270,1705489915543,-500.0,0.00024383,2]
[311894271,1705489915552,-561.37,0.00024383,2]
[311894272,1705489915562,-509.26538673,0.00024383,2]
[311894273,1705489915571,-500.0,0.00024383,2]
[311894274,1705489915580,-569.46,0.00024383,2]
[311894275,1705489915589,-564.18,0.00024383,2]
[311894276,1705489915598,-1178.46,0.00024383,2]
[311894277,1705489915607,-573.27,0.00024383,2]
[311894278,1705489915616,-500.0,0.00024383,2]
[311894279,1705489915626,-540.7,0.00024383,2]
[311894280,1705489915635,-500.0,0.00024383,2]
[311894281,1705489915644,-507.73,0.00024383,2]
[311894282,1705489915654,-151.19616799,0.00024383,2]
[311894283,1705489915663,-500.0,0.00024383,2]
[311894284,1705489915672,-313.52,0.00024383,2]
[311894285,1705489915681,-500.0,0.00024383,2]
[311894286,1705489915690,-500.0,0.00024383,2]
[311894287,1705489915699,-554.53,0.00024383,2]
[311894288,1705489915708,-676.5,0.00024383,2]
[311894289,1705489915717,-569.53,0.00024383,2]
[311894290,1705489915726,-500.0,0.00024383,2]
[311894291,1705489915734,-773.49,0.00024383,2]
[311894292,1705489915743,-500.0,0.00024383,2]
[311894293,1705489915752,-500.0,0.00024383,2]
[311894294,1705489915761,-713.2,0.00024383,2]
[311894295,1705489915770,-924.46,0.00024383,2]
[311894296,1705489915779,-1087.8,0.00024383,2]
[311894297,1705489915788,-748.0,0.00024383,2]
[311894298,1705489915797,-590.98,0.00024383,2]
[311894299,1705489915808,-1140.29,0.00024383,2]
[311894300,1705489915818,-500.0,0.00024383,2]
[311894301,1705489915827,-771.56,0.00024383,2]
[311894302,1705489915836,-500.0,0.00024383,2]
[311894303,1705489915845,-500.0,0.00024383,2]
[311894304,1705489915855,-500.0,0.00024383,2]
[311894305,1705489915864,-841.84,0.00024383,2]
[311894306,1705489915873,-1103.54,0.00024383,2]
[311894307,1705489915882,-771.02,0.00024383,2]
[311894308,1705489915891,-674.53,0.00024383,2]
[311894309,1705489915900,-500.0,0.00024383,2]
[311894310,1705489915909,-500.0,0.00024383,2]
[311894311,1705489915918,-1012.5,0.00024383,2]
[311894312,1705489915927,-708.29,0.00024383,2]
[311894313,1705489915936,-902.18,0.00024383,2]
[311894314,1705489915945,-642.34,0.00024383,2]
[311894315,1705489915954,-516.3572316,0.00024383,2]
[311894316,1705489915962,-1577.38,0.00024383,2]
[311894317,1705489915970,-500.0,0.00024383,2]
[311894318,1705489915980,-642.91,0.00024383,2]
[311894319,1705489915989,-671.72,0.00024383,2]
[311894320,1705489915999,-559.49,0.00024383,2]
[311894321,1705489916008,-500.0,0.00024383,2]
[311894322,1705489916017,-513.19,0.00024383,2]
[311894323,1705489916027,-1101.33,0.00024383,2]
[311894324,1705489916036,-560.17,0.00024383,2]
[311894325,1705489916046,-646.26,0.00024383,2]
[311894326,1705489916055,-500.0,0.00024383,2]
[311894327,1705489916064,-540.47,0.00024383,2]
[311894328,1705489916073,-1309.23,0.00024383,2]
[311894329,1705489916082,-862.21,0.00024383,2]
[311894330,1705489916091,-500.0,0.00024383,2]
[311894331,1705489916100,-500.0,0.00024383,2]
[311894332,1705489916109,-592.26,0.00024383,2]
[311894333,1705489916118,-500.0,0.00024383,2]
[311894334,1705489916126,-548.37,0.00024383,2]
[311894335,1705489916135,-852.28,0.00024383,2]
[311894336,1705489916144,-751.97,0.00024383,2]
[311894337,1705489916153,-629.68,0.00024383,2]
[311894338,1705489916162,-500.0,0.00024383,2]
[311894339,1705489916172,-1038.17,0.00024383,2]
[311894340,1705489916181,-865.86,0.00024383,2]
[311894341,1705489916191,-500.0,0.00024383,2]
[311894342,1705489916200,-500.0,0.00024383,2]
[311894343,1705489916210,-809.41,0.00024383,2]
[311894344,1705489916219,-824.35,0.00024383,2]
[311894345,1705489916229,-500.0,0.00024383,2]
[311894346,1705489916238,-583.98,0.00024383,2]
[311894347,1705489916247,-858.82,0.00024383,2]
[311894348,1705489916257,-500.0,0.00024383,2]
[311894349,1705489916266,-678.81,0.00024383,2]
[311894350,1705489916275,-924.3,0.00024383,2]
[311894351,1705489916285,-683.06,0.00024383,2]
[311894352,1705489916294,-500.0,0.00024383,2]
[311894353,1705489916303,-762.3,0.00024383,2]
[311894354,1705489916314,-500.0,0.00024383,2]
[311894355,1705489916322,-500.0,0.00024383,2]
[311894356,1705489916331,-869.48,0.00024383,2]
[311894357,1705489916340,-726.09,0.00024383,2]
[311894358,1705489916349,-500.0,0.00024383,2]
[311894359,1705489916362,-500.0,0.00024383,2]
[311894360,1705489916371,-636.58,0.00024383,2]
[311894361,1705489916380,-500.0,0.00024383,2]
[311894362,1705489916391,-888.84,0.00024383,2]
[311894363,1705489916401,-681.16,0.00024383,2]
[311894364,1705489916410,-1114.57,0.00024383,2]
[311894365,1705489916420,-986.98,0.00024383,2]
[311894366,1705489916430,-500.0,0.00024383,2]
[311894367,1705489916439,-560.75,0.00024383,2]
[311894368,1705489916448,-1015.76,0.00024383,2]
[311894369,1705489916457,-818.15,0.00024383,2]
[311894370,1705489916466,-924.47,0.00024383,2]
[311894371,1705489916476,-565.32,0.00024383,2]
[311894372,1705489916485,-778.03,0.00024383,2]
[311894373,1705489916494,-938.79,0.00024383,2]
[311894374,1705489916503,-685.24,0.00024383,2]
[311894375,1705489916512,-1126.57,0.00024383,2]
[311894376,1705489916521,-1529.03,0.00024383,2]
[311894377,1705489916530,-842.83,0.00024383,2]
[311894378,1705489916540,-677.6,0.00024383,2]
[311894379,1705489916549,-500.0,0.00024383,2]
[311894380,1705489916557,-824.64,0.00024383,2]
[311894381,1705489916567,-1113.11,0.00024383,2]
[311894382,1705489916576,-1539.23,0.00024383,2]
[311894383,1705489916585,-802.8,0.00024383,2]
[311894384,1705489916594,-1060.88,0.00024383,2]
[311894385,1705489916604,-509.96,0.00024383,2]
[311894386,1705489916613,-620.77,0.00024383,2]
[311894387,1705489916621,-500.0,0.00024383,2]
[311894388,1705489916630,-500.0,0.00024383,2]
[311894389,1705489916639,-1111.84,0.00024383,2]
[311894390,1705489916648,-500.0,0.00024383,2]
[311894391,1705489916657,-797.2,0.00024383,2]
[311894392,1705489916666,-554.16,0.00024383,2]
[311894393,1705489916676,-814.02,0.00024383,2]
[311894394,1705489916686,-653.02,0.00024383,2]
[311894395,1705489916695,-500.0,0.00024383,2]
[311894396,1705489916704,-728.98,0.00024383,2]
[311894397,1705489916713,-608.56,0.00024383,2]
[311894398,1705489916721,-500.0,0.00024383,2]
[311894399,1705489916730,-500.0,0.00024383,2]
[311894400,1705489916740,-500.0,0.00024383,2]
[311894401,1705489916749,-1117.37,0.00024383,2]
[311894402,1705489916758,-500.0,0.00024383,2]
[311894403,1705489916767,-786.84,0.00024383,2]
[311894404,1705489916776,-644.84,0.00024383,2]
[311894405,1705489916785,-865.83,0.00024383,2]
[311894406,1705489916794,-500.0,0.00024383,2]
[311894407,1705489916803,-500.0,0.00024383,2]
[311894408,1705489916814,-985.83,0.00024383,2]
[311894409,1705489916823,-645.46,0.00024383,2]
[311894410,1705489916831,-500.0,0.00024383,2]
[311894411,1705489916840,-654.2,0.00024383,2]
[311894412,1705489916849,-671.37,0.00024383,2]
[311894413,1705489916858,-500.0,0.00024383,2]
[311894414,1705489916867,-500.0,0.00024383,2]
[311894415,1705489916875,-500.0,0.00024383,2]
[311894416,1705489916884,-677.29,0.00024383,2]
[311894417,1705489916893,-859.76,0.00024383,2]
[311894418,1705489916902,-679.83,0.00024383,2]
[311894419,1705489916911,-812.38,0.00024383,2]
[311894420,1705489916920,-529.77,0.00024383,2]
[311894421,1705489916929,-500.0,0.00024383,2]
[311894422,1705489916937,-500.0,0.00024383,2]
[311894423,1705489916946,-905.75,0.00024383,2]
[311894424,1705489916955,-597.1,0.00024383,2]
[311894425,1705489916964,-500.0,0.00024383,2]
[311894426,1705489916973,-500.0,0.00024383,2]
[311894427,1705489916982,-500.0,0.00024383,2]
[311894428,1705489916991,-976.89,0.00024383,2]
[311894429,1705489917000,-921.81,0.00024383,2]
[311894430,1705489917009,-801.58,0.00024383,2]
[311894431,1705489917018,-1318.24,0.00024383,2]
[311894432,1705489917027,-565.85,0.00024383,2]
[311894433,1705489917036,-500.0,0.00024383,2]
[311894434,1705489917045,-761.53,0.00024383,2]
[311894435,1705489917054,-500.0,0.00024383,2]
[311894436,1705489917063,-500.0,0.00024383,2]
[311894437,1705489917072,-903.46,0.00024383,2]
[311894438,1705489917081,-638.67,0.00024383,2]
[311894439,1705489917089,-500.0,0.00024383,2]
[311894440,1705489917098,-689.33,0.00024383,2]
[311894441,1705489917107,-500.0,0.00024383,2]
[311894442,1705489917116,-287.10041209,0.00024383,2]
[311894443,1705489917125,-642.35,0.00024383,2]
[311894444,1705489917135,-1001.32,0.00024383,2]
[311894445,1705489917144,-500.0,0.00024383,2]
[311894446,1705489917152,-623.34,0.00024383,2]
[311894447,1705489917165,-1127.94,0.00024383,2]
[311894448,1705489917174,-500.0,0.00024383,2]
[311894449,1705489917183,-893.53,0.00024383,2]
[311894450,1705489917192,-970.35,0.00024383,2]
[311894451,1705489917201,-703.72,0.00024383,2]
[311894452,1705489917210,-500.0,0.00024383,2]
[311894453,1705489917219,-877.36,0.00024383,2]
[311894454,1705489917229,-500.0,0.00024383,2]
[311894455,1705489917238,-1113.03,0.00024383,2]
[311894456,1705489917247,-1009.59,0.00024383,2]
[311894457,1705489917256,-671.58,0.00024383,2]
[311894458,1705489917266,-500.0,0.00024383,2]
[311894459,1705489917275,-645.55,0.00024383,2]
[311894460,1705489917284,-519.72,0.00024383,2]
[311894461,1705489917294,-832.3,0.00024383,2]
[311894462,1705489917303,-509.1,0.00024383,2]
[311894463,1705489917314,-500.0,0.00024383,2]
[311894464,1705489917324,-556.75,0.00024383,2]
[311894465,1705489917333,-500.0,0.00024383,2]
[311894466,1705489917342,-919.94,0.00024383,2]
[311894467,1705489917351,-574.45,0.00024383,2]
[311894468,1705489917366,-730.7,0.00024383,2]
[311894469,1705489917375,-1564.11,0.00024383,2]
[311894470,1705489917385,-665.72,0.00024383,2]
[311894471,1705489917395,-1972.35,0.00024383,2]
[311894472,1705489917407,-753.37,0.00024383,2]
[311894473,1705489917416,-819.9,0.00024383,2]
[311894474,1705489917426,-1330.15,0.00024383,2]
[311894475,1705489917437,-500.0,0.00024383,2]
[311894476,1705489917447,-1961.2,0.00024383,2]
[311894477,1705489917457,-924.92,0.00024383,2]
[311894478,1705489917467,-1342.87,0.00024383,2]
[311894479,1705489917476,-500.0,0.00024383,2]
[311894480,1705489917486,-516.6,0.00024383,2]
[311894481,1705489917495,-966.0,0.00024383,2]
[311894482,1705489917504,-1214.22,0.00024383,2]
[311894483,1705489917514,-872.31,0.00024383,2]
[311894484,1705489917524,-500.0,0.00024383,2]
[311894485,1705489917534,-500.0,0.00024383,2]
[311894486,1705489917543,-748.35,0.00024383,2]
[311894487,1705489917552,-500.0,0.00024383,2]
[311894488,1705489917562,-937.16,0.00024383,2]
[311894489,1705489917572,-799.25,0.00024383,2]
[311894490,1705489917581,-628.65,0.00024383,2]
[311894491,1705489917591,-500.0,0.00024383,2]
[311894492,1705489917601,-616.54,0.00024383,2]
[311894493,1705489917610,-500.0,0.00024383,2]
[311894494,1705489917619,-717.16,0.00024383,2]
[311894495,1705489917628,-500.0,0.00024383,2]
[311894496,1705489917637,-383.22667183,0.00024383,2]
[311894497,1705489917646,-500.0,0.00024383,2]
[311894498,1705489917656,-707.9,0.00024383,2]
[311894499,1705489917665,-2202.67,0.00024383,2]
[311894500,1705489917675,-994.43,0.00024383,2]
[311894501,1705489917684,-500.0,0.00024383,2]
[311894502,1705489917693,-1314.57,0.00024383,2]
[311894503,1705489917702,-700.88,0.00024383,2]
[311894504,1705489917711,-747.11,0.00024383,2]
[311894505,1705489917721,-1247.23,0.00024383,2]
[311894506,1705489917730,-500.0,0.00024383,2]
[311894507,1705489917739,-500.0,0.00024383,2]
[311894508,1705489917748,-580.86010088,0.00024383,2]
[311894509,1705489917757,-1107.65,0.00024383,2]
[311894510,1705489917766,-1113.86,0.00024383,2]
[311894511,1705489917776,-940.75,0.00024383,2]
[311894512,1705489917786,-525.28877098,0.00024383,2]
[311894513,1705489917796,-1068.04,0.00024383,2]
[311894514,1705489917805,-591.69,0.00024383,2]
[311894515,1705489917814,-500.0,0.00024383,2]
[311894516,1705489917823,-514.52,0.00024383,2]
[311894517,1705489917833,-1801.96,0.00024383,2]
[311894518,1705489917842,-1119.07,0.00024383,2]
[311894519,1705489917851,-2470.72,0.00024383,2]
[311894520,1705489917861,-500.0,0.00024383,2]
[311894521,1705489917870,-500.0,0.00024383,2]
[311894522,1705489917880,-500.0,0.00024383,2]
[311894523,1705489917890,-524.15,0.00024383,2]
[311894524,1705489917900,-904.79,0.00024383,2]
[311894525,1705489917909,-510.6,0.00024383,2]
[311894526,1705489917918,-576.31,0.00024383,2]
[311894527,1705489917928,-1190.34,0.00024383,2]
[311894528,1705489917938,-764.68,0.00024383,2]
[311894529,1705489917948,-1052.25,0.00024383,2]
[311894530,1705489917958,-636.43,0.00024383,2]
[311894531,1705489917967,-670.55,0.00024383,2]
[311894532,1705489917977,-1264.48,0.00024383,2]
[311894533,1705489917986,-450.33154279,0.00024383,2]
[311894534,1705489917996,-814.85,0.00024383,2]
[311894535,1705489918005,-327.26099277,0.00024383,2]
[311894536,1705489918015,-500.0,0.00024383,2]
[311894537,1705489918025,-544.71,0.00024383,2]
[311894538,1705489918035,-1206.43,0.00024383,2]
[311894539,1705489918046,-1198.01,0.00024383,2]
[311894540,1705489918055,-500.0,0.00024383,2]
[311894541,1705489918065,-500.0,0.00024383,2]
[311894542,1705489918075,-1043.84,0.00024383,2]
[311894543,1705489918084,-1304.35,0.00024383,2]
[311894544,1705489918094,-1069.27,0.00024383,2]
[311894545,1705489918104,-1087.69,0.00024383,2]
[311894546,1705489918113,-962.26,0.00024383,2]
[311894547,1705489918123,-500.0,0.00024383,2]
[311894548,1705489918133,-500.0,0.00024383,2]
[311894549,1705489918143,-516.2,0.00024383,2]
[311894550,1705489918153,-1632.67,0.00024383,2]
[311894551,1705489918163,-939.16,0.00024383,2]
[311894552,1705489918174,-500.0,0.00024383,2]
[311894553,1705489918185,-500.0,0.00024383,2]
[311894554,1705489918195,-918.4,0.00024383,2]
[311894555,1705489918205,-995.2,0.00024383,2]
[311894556,1705489918214,-500.0,0.00024383,2]
[311894557,1705489918224,-1008.57,0.00024383,2]
[311894558,1705489918234,-500.0,0.00024383,2]
[311894559,1705489918243,-500.0,0.00024383,2]
[311894560,1705489918252,-1029.51,0.00024383,2]
[311894561,1705489918262,-500.0,0.00024383,2]
[311894562,1705489918271,-500.0,0.00024383,2]
[311894563,1705489918281,-1060.73,0.00024383,2]
[311894564,1705489918290,-500.0,0.00024383,2]
[311894565,1705489918299,-636.13,0.00024383,2]
[311894566,1705489918309,-500.0,0.00024383,2]
[311894567,1705489918320,-702.02,0.00024383,2]
[311894568,1705489918329,-594.97,0.00024383,2]
[311894569,1705489918338,-701.5,0.00024383,2]
[311894570,1705489918348,-1038.32,0.00024383,2]
[311894571,1705489918359,-572.4,0.00024383,2]
[311894572,1705489918369,-3550.63,0.00024383,2]
[311894573,1705489918378,-500.0,0.00024383,2]
[311894574,1705489918388,-982.96,0.00024383,2]
[311894575,1705489918398,-500.0,0.00024383,2]
[311894576,1705489918407,-579.93,0.00024383,2]
[311894577,1705489918417,-924.4,0.00024383,2]
[311894578,1705489918426,-500.0,0.00024383,2]
[311894579,1705489918439,-578.12,0.00024383,2]
[311894580,1705489918449,-500.0,0.00024383,2]
[311894581,1705489918459,-885.89,0.00024383,2]
[311894582,1705489918469,-694.35,0.00024383,2]
[311894583,1705489918478,-711.56,0.00024383,2]
[311894584,1705489918488,-1404.62,0.00024383,2]
[311894585,1705489918497,-500.0,0.00024383,2]
[311894586,1705489918507,-635.43,0.00024383,2]
[311894587,1705489918516,-1174.22,0.00024383,2]
[311894588,1705489918528,-1235.63,0.00024383,2]
[311894589,1705489918537,-915.13,0.00024383,2]
[311894590,1705489918546,-701.7,0.00024383,2]
[311894591,1705489918555,-500.0,0.00024383,2]
[311894592,1705489918566,-2849.83,0.00024383,2]
[311894593,1705489918575,-544.59,0.00024383,2]
[311894594,1705489918584,-1964.36,0.00024383,2]
[311894595,1705489918594,-500.0,0.00024383,2]
[311894596,1705489918603,-2896.5,0.00024383,2]
[311894597,1705489918612,-500.0,0.00024383,2]
[311894598,1705489918622,-683.02,0.00024383,2]
[311894599,1705489918631,-1968.52,0.00024383,2]
[311894600,1705489918640,-1342.01,0.00024383,2]
[311894601,1705489918649,-675.72,0.00024383,2]
[311894602,1705489918659,-1029.41,0.00024383,2]
[311894603,1705489918668,-1548.58,0.00024383,2]
[311894604,1705489918678,-500.0,0.00024383,2]
[311894605,1705489918687,-500.0,0.00024383,2]
[311894606,1705489918696,-655.65,0.00024383,2]
[311894607,1705489918705,-3528.9,0.00024383,2]
[311894608,1705489918715,-550.17,0.00024383,2]
[311894609,1705489918724,-530.48,0.00024383,2]
[311894610,1705489918734,-1274.2,0.00024383,2]
[311894611,1705489918743,-500.0,0.00024383,2]
[311894612,1705489918753,-1478.93,0.00024383,2]
[311894613,1705489918762,-826.31,0.00024383,2]
[311894614,1705489918771,-710.03,0.00024383,2]
[311894615,1705489918781,-8305.92,0.00024383,2]
[311894616,1705489918789,-500.0,0.00024383,2]
[311894617,1705489918799,-3468.63,0.00024383,2]
[311894618,1705489918808,-688.83,0.00024383,2]
[311894619,1705489918819,-598.69,0.00024383,2]
[311894620,1705489918828,-566.04,0.00024383,2]
[311894621,1705489918838,-13840.01,0.00024383,2]
[311894622,1705489918847,-330.45,0.00024383,2]
[311894623,1705489918857,-611.72,0.00024383,2]
[311894624,1705489918866,-678.15,0.00024383,2]
[311894625,1705489918875,-500.0,0.00024383,2]
[311894626,1705489918885,-6007.21,0.00024383,2]
[311894627,1705489918894,-11260.59,0.00024383,2]
[311894628,1705489918904,-576.52,0.00024383,2]
[311894629,1705489918914,-537.26,0.00024383,2]
[311894630,1705489918923,-839.94,0.00024383,2]
[311894631,1705489918933,-9043.74,0.00024383,2]
[311894632,1705489918942,-500.0,0.00024383,2]
[311894633,1705489918952,-2267.53,0.00024383,2]
[311894634,1705489918961,-785.85,0.00024383,2]
[311894635,1705489918971,-2426.8,0.00024383,2]
[311894636,1705489918980,-500.0,0.00024383,2]
[311894637,1705489918990,-1153.46,0.00024383,2]
[311894638,1705489919000,-5019.46,0.00024383,2]
[311894639,1705489919010,-14230.88,0.00024383,2]
[311894640,1705489919019,-585.41,0.00024383,2]
[311894641,1705489919029,-1948.18,0.00024383,2]
[311894642,1705489919038,-807.32,0.00024383,2]
[311894643,1705489919048,-500.0,0.00024383,2]
[311894644,1705489919058,-500.0,0.00024383,2]
[311894645,1705489919069,-1841.76,0.00024383,2]
[311894646,1705489919078,-541.68,0.00024383,2]
[311894647,1705489919087,-648.92,0.00024383,2]
[311894648,1705489919097,-1313.51,0.00024383,2]
[311894649,1705489919107,-7863.6,0.00024383,2]
[311894650,1705489919117,-669.79,0.00024383,2]
[311894651,1705489919127,-1235.43,0.00024383,2]
[311894652,1705489919137,-1875.02,0.00024383,2]
[311894653,1705489919147,-697.24,0.00024383,2]
[311894654,1705489919156,-886.27,0.00024383,2]
[311894655,1705489919166,-861.27,0.00024383,2]
[311894656,1705489919175,-863.63,0.00024383,2]
[311894657,1705489919184,-2235.54,0.00024383,2]
[311894658,1705489919194,-6074.67,0.00024383,2]
[311894659,1705489919203,-524.02,0.00024383,2]
[311894660,1705489919213,-500.0,0.00024383,2]
[311894661,1705489919223,-509.87193246,0.00024383,2]
[311894662,1705489919232,-4516.86,0.00024383,2]
[311894663,1705489919242,-500.0,0.00024383,2]
[311894664,1705489919251,-3841.76,0.00024383,2]
[311894665,1705489919261,-500.0,0.00024383,2]
[311894666,1705489919270,-974.16,0.00024383,2]
[311894667,1705489919280,-4150.83,0.00024383,2]
[311894668,1705489919523,-4448.34,0.00024383,2]
[311894669,1705489919533,-500.0,0.00024383,2]
[311894670,1705489919542,-500.0,0.00024383,2]
[311894671,1705489919552,-533.91,0.00024383,2]
[311894672,1705489919561,-435.86221721,0.00024383,2]
[311894673,1705489919571,-500.0,0.00024383,2]
[311894674,1705489919580,-566.02,0.00024383,2]
[311894675,1705489919589,-2935.1,0.00024383,2]
[311894676,1705489919598,-1309.04,0.00024383,2]
[311894677,1705489919607,-228.99262276,0.00024383,2]
[311894678,1705489919616,-1965.44,0.00024383,2]
[311894679,1705489919626,-992.22,0.00024383,2]
[311894680,1705489919635,-984.15,0.00024383,2]
[311894681,1705489919644,-500.0,0.00024383,2]
[311894682,1705489919653,-32469.27,0.00024383,2]
[311894683,1705489919663,-573.08,0.00024383,2]
[311894684,1705489919672,-661.33,0.00024383,2]
[311894685,1705489919681,-1696.71,0.00024383,2]
[311894686,1705489919691,-615.65,0.00024383,2]